[Event "Titled Tuesday Blitz April 25 Late 2023"]
[White "Albuquerque Junior,Wellington S."]
[Black "Pinto, Daniel"]
[WhiteFideId "2151480"]
[BlackFideId "3303144"]
[WhiteElo "2109"]
[BlackElo "2145"]
[Result "1-0"]
[Round "07"]
[TimeControl "180+2"]
[Date "2023.04.25"]
[WhiteClock "0:00:20"]
[BlackClock "0:00:01"]

1. c4 {[%clk 0:02:59]}  c5 {[%clk 0:02:58]} 2. g3 {[%clk 0:02:59]}  Nc6 {[%clk 0:02:59]} 3. Bg2 {[%clk 0:02:59]}  g6 {[%clk 0:03:00]} 4. Nc3 {[%clk 0:03:00]}  Bg7 {[%clk 0:03:00]} 5. e4 {[%clk 0:03:00]}  e5 {[%clk 0:03:01]} 6. d3 {[%clk 0:03:00]}  Nge7 {[%clk 0:03:01]} 7. Nge2 {[%clk 0:03:01]}  O-O {[%clk 0:03:02]} 8. O-O {[%clk 0:03:01]}  d6 {[%clk 0:03:02]} 9. Rb1 {[%clk 0:02:56]}  a5 {[%clk 0:03:02]} 10. a3 {[%clk 0:02:51]}  f5 {[%clk 0:03:00]} 11. Nd5 {[%clk 0:02:43]}  Nxd5 {[%clk 0:02:57]} 12. cxd5 {[%clk 0:02:42]}  Ne7 {[%clk 0:02:56]} 13. b4 {[%clk 0:02:33]}  cxb4 {[%clk 0:02:57]} 14. axb4 {[%clk 0:02:34]}  a4 {[%clk 0:02:57]} 15. b5 {[%clk 0:02:34]}  Bd7 {[%clk 0:02:30]} 16. Ba3 {[%clk 0:02:33]}  Qb6 {[%clk 0:02:28]} 17. Nc3 {[%clk 0:01:52]}  Qd4 {[%clk 0:01:37]} 18. Ne2 {[%clk 0:01:28]}  Qb6 {[%clk 0:01:36]} 19. Nc3 {[%clk 0:01:29]}  Rfc8 {[%clk 0:01:25]} 20. Nxa4 {[%clk 0:01:26]}  Qa5 {[%clk 0:00:53]} 21. Bxd6 {[%clk 0:01:25]}  Nxd5 {[%clk 0:00:45]} 22. exf5 {[%clk 0:01:17]}  Nb6 {[%clk 0:00:25]} 23. Nc5 {[%clk 0:01:09]}  Bxf5 {[%clk 0:00:19]} 24. Nxb7 {[%clk 0:00:47]}  Qc3 {[%clk 0:00:14]} 25. Rc1 {[%clk 0:00:32]}  Qxd3 {[%clk 0:00:12]} 26. Nc5 {[%clk 0:00:25]}  Qxd1 {[%clk 0:00:09]} 27. Rfxd1 {[%clk 0:00:26]}  Ra5 {[%clk 0:00:06]} 28. Bc6 {[%clk 0:00:23]}  e4 {[%clk 0:00:04]} 29. Nb7 {[%clk 0:00:21]}  Ra2 {[%clk 0:00:03]} 30. Bc5 {[%clk 0:00:19]}  Na4 {[%clk 0:00:01]} 31. Bd4 {[%clk 0:00:20]} 1-0


[Site "https://www.chess.com"]

[Event "Titled Tuesday Blitz April 25 Late 2023"]
[White "Alexikov, Alexander"]
[Black "Torres Dominguez, David"]
[WhiteFideId "14103958"]
[BlackFideId "2220857"]
[WhiteElo "2186"]
[BlackElo "1999"]
[Result "1/2-1/2"]
[Round "07"]
[TimeControl "180+2"]
[Date "2023.04.25"]
[WhiteClock "0:00:47"]
[BlackClock "0:01:07"]

1. e4 {[%clk 0:03:00]}  e5 {[%clk 0:03:00]} 2. Nf3 {[%clk 0:03:00]}  Nc6 {[%clk 0:03:00]} 3. c3 {[%clk 0:03:01]}  Nf6 {[%clk 0:02:58]} 4. d4 {[%clk 0:03:00]}  Nxe4 {[%clk 0:02:59]} 5. d5 {[%clk 0:02:58]}  Ne7 {[%clk 0:02:59]} 6. Nxe5 {[%clk 0:02:57]}  Ng6 {[%clk 0:02:59]} 7. Qf3 {[%clk 0:02:56]}  Qe7 {[%clk 0:02:58]} 8. Nxg6 {[%clk 0:02:56]}  hxg6 {[%clk 0:02:58]} 9. Be3 {[%clk 0:02:56]}  d6 {[%clk 0:02:42]} 10. Nd2 {[%clk 0:02:54]}  Nxd2 {[%clk 0:02:42]} 11. Kxd2 {[%clk 0:02:53]}  Qf6 {[%clk 0:02:33]} 12. Qe4+ {[%clk 0:02:40]}  Be7 {[%clk 0:02:31]} 13. Bb5+ {[%clk 0:02:38]}  Bd7 {[%clk 0:02:24]} 14. Qa4 {[%clk 0:02:29]}  Qf5 {[%clk 0:02:16]} 15. Bxd7+ {[%clk 0:02:28]}  Qxd7 {[%clk 0:02:15]} 16. Qxd7+ {[%clk 0:02:22]}  Kxd7 {[%clk 0:02:16]} 17. h3 {[%clk 0:02:21]}  Rae8 {[%clk 0:02:15]} 18. Rhe1 {[%clk 0:02:19]}  a6 {[%clk 0:02:15]} 19. a4 {[%clk 0:02:19]}  Bf6 {[%clk 0:02:09]} 20. Kd3 {[%clk 0:02:19]}  Rh5 {[%clk 0:02:06]} 21. Kc4 {[%clk 0:02:09]}  Rh4+ {[%clk 0:01:54]} 22. Kb3 {[%clk 0:02:04]}  Rhe4 {[%clk 0:01:52]} 23. Red1 {[%clk 0:02:04]}  R4e5 {[%clk 0:01:34]} 24. a5 {[%clk 0:01:42]}  Bg5 {[%clk 0:01:34]} 25. Bxg5 {[%clk 0:01:24]}  Rxg5 {[%clk 0:01:35]} 26. g4 {[%clk 0:01:23]}  Rge5 {[%clk 0:01:32]} 27. Rd2 {[%clk 0:01:22]}  Rh8 {[%clk 0:01:32]} 28. Rh1 {[%clk 0:01:20]}  g5 {[%clk 0:01:32]} 29. c4 {[%clk 0:01:18]}  Re4 {[%clk 0:01:29]} 30. Kc3 {[%clk 0:01:17]}  Rxg4 {[%clk 0:01:28]} 31. hxg4 {[%clk 0:01:15]}  Rxh1 {[%clk 0:01:27]} 32. f3 {[%clk 0:01:11]}  Rh3 {[%clk 0:01:25]} 33. Rd3 {[%clk 0:01:11]}  g6 {[%clk 0:01:24]} 34. Kd4 {[%clk 0:01:03]}  f5 {[%clk 0:01:21]} 35. Re3 {[%clk 0:01:01]}  fxg4 {[%clk 0:01:21]} 36. fxg4 {[%clk 0:01:01]}  Rxe3 {[%clk 0:01:21]} 37. Kxe3 {[%clk 0:01:00]}  c5 {[%clk 0:01:20]} 38. dxc6+ {[%clk 0:00:57]}  bxc6 {[%clk 0:01:19]} 39. b4 {[%clk 0:00:54]}  Kc7 {[%clk 0:01:07]} 40. Kd4 {[%clk 0:00:52]}  Kb7 {[%clk 0:01:07]} 41. Ke4 {[%clk 0:00:50]}  Kc7 {[%clk 0:01:07]} 42. Kd4 {[%clk 0:00:49]}  Kb7 {[%clk 0:01:07]} 43. Ke4 {[%clk 0:00:47]}  Kc7 {[%clk 0:01:07]} 44. Kd4 {[%clk 0:00:47]} 1/2-1/2


[Site "https://www.chess.com"]

[Event "Titled Tuesday Blitz April 25 Late 2023"]
[White "Rodriguez Santiago, Jaime"]
[Black "Grinev, Valeriy"]
[WhiteFideId "3100898"]
[BlackFideId "14117517"]
[WhiteElo "2025"]
[BlackElo "2366"]
[Result "1-0"]
[Round "07"]
[TimeControl "180+2"]
[Date "2023.04.25"]
[WhiteClock "0:00:45"]
[BlackClock "0:01:47"]

1. c4 {[%clk 0:03:00]}  e5 {[%clk 0:02:52]} 2. Nc3 {[%clk 0:03:00]}  Nc6 {[%clk 0:02:53]} 3. g3 {[%clk 0:02:59]}  g6 {[%clk 0:02:53]} 4. Bg2 {[%clk 0:02:59]}  Bg7 {[%clk 0:02:54]} 5. e4 {[%clk 0:02:56]}  Nge7 {[%clk 0:02:55]} 6. d3 {[%clk 0:02:56]}  O-O {[%clk 0:02:56]} 7. Nge2 {[%clk 0:02:55]}  d6 {[%clk 0:02:56]} 8. O-O {[%clk 0:02:54]}  a5 {[%clk 0:02:56]} 9. Nd5 {[%clk 0:02:51]}  Nxd5 {[%clk 0:02:56]} 10. cxd5 {[%clk 0:02:51]}  Ne7 {[%clk 0:02:57]} 11. Be3 {[%clk 0:02:49]}  c5 {[%clk 0:02:57]} 12. dxc6 {[%clk 0:02:44]}  bxc6 {[%clk 0:02:58]} 13. Rc1 {[%clk 0:02:43]}  c5 {[%clk 0:02:58]} 14. f4 {[%clk 0:02:40]}  exf4 {[%clk 0:02:55]} 15. gxf4 {[%clk 0:02:31]}  Bxb2 {[%clk 0:02:56]} 16. Rb1 {[%clk 0:02:28]}  Bg7 {[%clk 0:02:55]} 17. f5 {[%clk 0:02:19]}  Be5 {[%clk 0:02:48]} 18. f6 {[%clk 0:02:13]}  Nc6 {[%clk 0:02:46]} 19. Bg5 {[%clk 0:01:56]}  Bg4 {[%clk 0:02:42]} 20. Qd2 {[%clk 0:01:48]}  Bxe2 {[%clk 0:02:38]} 21. Qxe2 {[%clk 0:01:47]}  Nd4 {[%clk 0:02:39]} 22. Qg4 {[%clk 0:01:45]}  Rb8 {[%clk 0:02:32]} 23. Rxb8 {[%clk 0:01:31]}  Qxb8 {[%clk 0:02:31]} 24. Qh4 {[%clk 0:01:31]}  h5 {[%clk 0:02:17]} 25. Be3 {[%clk 0:01:02]}  Ne6 {[%clk 0:01:59]} 26. Bh3 {[%clk 0:00:53]}  Qb2 {[%clk 0:01:58]} 27. Rf2 {[%clk 0:00:47]}  Qxa2 {[%clk 0:01:47]} 28. Rxa2 {[%clk 0:00:45]} 1-0


[Site "https://www.chess.com"]

[Event "Titled Tuesday Blitz April 25 Late 2023"]
[White "Allahverdiyeva, Ayan"]
[Black "Lorenzo De La Riva, Lazaro"]
[WhiteFideId "13412590"]
[BlackFideId "2268809"]
[WhiteElo "1980"]
[BlackElo "2294"]
[Result "0-1"]
[Round "07"]
[TimeControl "180+2"]
[Date "2023.04.25"]
[WhiteClock "0:00:01"]
[BlackClock "0:01:29"]

1. e4 {[%clk 0:02:45]}  g6 {[%clk 0:03:00]} 2. d4 {[%clk 0:02:44]}  Bg7 {[%clk 0:03:01]} 3. Nc3 {[%clk 0:02:43]}  c6 {[%clk 0:03:01]} 4. f4 {[%clk 0:02:39]}  d5 {[%clk 0:03:01]} 5. e5 {[%clk 0:02:39]}  h5 {[%clk 0:03:00]} 6. h3 {[%clk 0:02:35]}  Nh6 {[%clk 0:02:59]} 7. Nf3 {[%clk 0:02:25]}  Nf5 {[%clk 0:02:58]} 8. Bd3 {[%clk 0:02:25]}  h4 {[%clk 0:02:57]} 9. Kf2 {[%clk 0:02:17]}  Ng3 {[%clk 0:02:56]} 10. Re1 {[%clk 0:02:17]}  Bf5 {[%clk 0:02:55]} 11. Nxh4 {[%clk 0:01:56]}  Bxd3 {[%clk 0:02:55]} 12. cxd3 {[%clk 0:01:15]}  Rxh4 {[%clk 0:02:41]} 13. Kxg3 {[%clk 0:01:15]}  e6 {[%clk 0:02:41]} 14. Kf2 {[%clk 0:01:04]}  Qb6 {[%clk 0:02:32]} 15. Ne2 {[%clk 0:01:03]}  c5 {[%clk 0:02:28]} 16. dxc5 {[%clk 0:01:02]}  Qxc5+ {[%clk 0:02:28]} 17. Be3 {[%clk 0:01:02]}  Qa5 {[%clk 0:02:23]} 18. Kg3 {[%clk 0:00:47]}  Rh5 {[%clk 0:02:21]} 19. Qb3 {[%clk 0:00:40]}  Qa6 {[%clk 0:02:12]} 20. Nd4 {[%clk 0:00:38]}  Nc6 {[%clk 0:01:56]} 21. Qb5 {[%clk 0:00:35]}  Qxb5 {[%clk 0:01:52]} 22. Nxb5 {[%clk 0:00:35]}  Kd7 {[%clk 0:01:52]} 23. Kf3 {[%clk 0:00:27]}  Bf8 {[%clk 0:01:51]} 24. Rec1 {[%clk 0:00:20]}  g5 {[%clk 0:01:50]} 25. Kg4 {[%clk 0:00:16]}  Rh7 {[%clk 0:01:46]} 26. Nd4 {[%clk 0:00:16]}  gxf4 {[%clk 0:01:44]} 27. Kxf4 {[%clk 0:00:15]}  Rh4+ {[%clk 0:01:40]} 28. g4 {[%clk 0:00:14]}  Rxh3 {[%clk 0:01:40]} 29. Nxc6 {[%clk 0:00:12]}  bxc6 {[%clk 0:01:41]} 30. Rh1 {[%clk 0:00:10]}  Bh6+ {[%clk 0:01:40]} 31. g5 {[%clk 0:00:10]}  Bxg5+ {[%clk 0:01:40]} 32. Kxg5 {[%clk 0:00:09]}  Rxe3 {[%clk 0:01:41]} 33. Raf1 {[%clk 0:00:08]}  Ke7 {[%clk 0:01:39]} 34. Rh7 {[%clk 0:00:08]}  Rf8 {[%clk 0:01:39]} 35. d4 {[%clk 0:00:06]}  Rg3+ {[%clk 0:01:33]} 36. Kh4 {[%clk 0:00:06]}  Rd3 {[%clk 0:01:34]} 37. Rf4 {[%clk 0:00:04]}  Rd2 {[%clk 0:01:31]} 38. Kh5 {[%clk 0:00:01]}  Rh2+ {[%clk 0:01:29]} 0-1


[Site "https://www.chess.com"]

[Event "Titled Tuesday Blitz April 25 Late 2023"]
[White "Aigner, Michael"]
[Black "Zakarian, David"]
[WhiteFideId "2017288"]
[BlackFideId "13301276"]
[WhiteElo "1966"]
[BlackElo "2306"]
[Result "0-1"]
[Round "07"]
[TimeControl "180+2"]
[Date "2023.04.25"]
[WhiteClock "0:00:12"]
[BlackClock "0:00:22"]

1. e4 {[%clk 0:03:00]}  Nc6 {[%clk 0:02:59]} 2. d4 {[%clk 0:03:00]}  d5 {[%clk 0:02:59]} 3. e5 {[%clk 0:02:57]}  f6 {[%clk 0:02:58]} 4. exf6 {[%clk 0:02:54]}  Nxf6 {[%clk 0:02:58]} 5. Nf3 {[%clk 0:02:54]}  Bg4 {[%clk 0:02:57]} 6. Be2 {[%clk 0:02:53]}  Bxf3 {[%clk 0:02:57]} 7. Bxf3 {[%clk 0:02:53]}  e5 {[%clk 0:02:58]} 8. dxe5 {[%clk 0:02:49]}  Nxe5 {[%clk 0:02:59]} 9. O-O {[%clk 0:02:44]}  Nxf3+ {[%clk 0:02:55]} 10. Qxf3 {[%clk 0:02:43]}  Be7 {[%clk 0:02:56]} 11. Nc3 {[%clk 0:02:30]}  O-O {[%clk 0:02:55]} 12. Qe2 {[%clk 0:02:28]}  c6 {[%clk 0:02:54]} 13. Qe6+ {[%clk 0:02:18]}  Rf7 {[%clk 0:02:41]} 14. Bg5 {[%clk 0:02:16]}  h6 {[%clk 0:02:35]} 15. Bh4 {[%clk 0:02:08]}  Qd6 {[%clk 0:02:33]} 16. Rae1 {[%clk 0:02:00]}  Rd8 {[%clk 0:02:21]} 17. a3 {[%clk 0:01:55]}  Kf8 {[%clk 0:01:48]} 18. Re2 {[%clk 0:01:42]}  Qxe6 {[%clk 0:01:47]} 19. Rxe6 {[%clk 0:01:41]}  Nh5 {[%clk 0:01:39]} 20. Bxe7+ {[%clk 0:01:21]}  Rxe7 {[%clk 0:01:40]} 21. Rxe7 {[%clk 0:01:21]}  Kxe7 {[%clk 0:01:40]} 22. Re1+ {[%clk 0:01:21]}  Kd6 {[%clk 0:01:32]} 23. g3 {[%clk 0:01:22]}  Nf6 {[%clk 0:01:31]} 24. f3 {[%clk 0:01:21]}  Re8 {[%clk 0:01:31]} 25. Rxe8 {[%clk 0:01:20]}  Nxe8 {[%clk 0:01:32]} 26. Kf2 {[%clk 0:01:20]}  Nf6 {[%clk 0:01:32]} 27. Ne2 {[%clk 0:01:17]}  c5 {[%clk 0:01:30]} 28. Nf4 {[%clk 0:01:16]}  b5 {[%clk 0:01:23]} 29. h4 {[%clk 0:01:15]}  a5 {[%clk 0:01:20]} 30. g4 {[%clk 0:01:13]}  d4 {[%clk 0:01:16]} 31. Ke2 {[%clk 0:01:10]}  c4 {[%clk 0:01:16]} 32. h5 {[%clk 0:01:02]}  b4 {[%clk 0:01:02]} 33. axb4 {[%clk 0:01:01]}  axb4 {[%clk 0:01:03]} 34. Ng2 {[%clk 0:00:53]}  Ke5 {[%clk 0:00:59]} 35. Kd2 {[%clk 0:00:40]}  Nd5 {[%clk 0:00:58]} 36. b3 {[%clk 0:00:36]}  c3+ {[%clk 0:00:29]} 37. Kd3 {[%clk 0:00:14]}  Nf4+ {[%clk 0:00:30]} 38. Nxf4 {[%clk 0:00:13]}  Kxf4 {[%clk 0:00:31]} 39. Kxd4 {[%clk 0:00:14]}  Kxf3 {[%clk 0:00:31]} 40. Kc4 {[%clk 0:00:14]}  Ke3 {[%clk 0:00:24]} 41. Kxb4 {[%clk 0:00:12]}  Kd2 {[%clk 0:00:25]} 42. Ka5 {[%clk 0:00:09]}  Kxc2 {[%clk 0:00:25]} 43. b4 {[%clk 0:00:09]}  Kd3 {[%clk 0:00:21]} 44. b5 {[%clk 0:00:10]}  c2 {[%clk 0:00:21]} 45. b6 {[%clk 0:00:11]}  c1=Q {[%clk 0:00:22]} 46. b7 {[%clk 0:00:12]}  Qa3+ {[%clk 0:00:22]} 0-1


[Site "https://www.chess.com"]

[Event "Titled Tuesday Blitz April 25 Late 2023"]
[White "D`Arruda, Ricardo D."]
[Black "Kostiukov, Alexandr"]
[WhiteFideId "100692"]
[BlackFideId "14108100"]
[WhiteElo "2271"]
[BlackElo "2202"]
[Result "1-0"]
[Round "07"]
[TimeControl "180+2"]
[Date "2023.04.25"]
[WhiteClock "0:00:58"]
[BlackClock "0:00:05"]

1. Nf3 {[%clk 0:02:58]}  c5 {[%clk 0:02:53]} 2. e3 {[%clk 0:02:55]}  g6 {[%clk 0:02:52]} 3. d4 {[%clk 0:02:55]}  Bg7 {[%clk 0:02:52]} 4. c4 {[%clk 0:02:55]}  Nf6 {[%clk 0:02:52]} 5. Nc3 {[%clk 0:02:55]}  O-O {[%clk 0:02:52]} 6. Be2 {[%clk 0:02:55]}  d5 {[%clk 0:02:52]} 7. O-O {[%clk 0:02:52]}  cxd4 {[%clk 0:02:50]} 8. Nxd4 {[%clk 0:02:51]}  a6 {[%clk 0:02:42]} 9. b3 {[%clk 0:02:47]}  dxc4 {[%clk 0:02:36]} 10. Bxc4 {[%clk 0:02:48]}  b5 {[%clk 0:02:36]} 11. Be2 {[%clk 0:02:49]}  Bb7 {[%clk 0:02:34]} 12. Bf3 {[%clk 0:02:49]}  Qb6 {[%clk 0:02:29]} 13. Bb2 {[%clk 0:02:46]}  Rd8 {[%clk 0:02:28]} 14. Bxb7 {[%clk 0:02:40]}  Qxb7 {[%clk 0:02:28]} 15. Qf3 {[%clk 0:02:39]}  Qxf3 {[%clk 0:02:23]} 16. gxf3 {[%clk 0:02:40]}  e5 {[%clk 0:02:01]} 17. Nde2 {[%clk 0:02:39]}  Rd2 {[%clk 0:01:51]} 18. Ba3 {[%clk 0:02:16]}  Nc6 {[%clk 0:01:47]} 19. Rfd1 {[%clk 0:02:12]}  Rad8 {[%clk 0:01:38]} 20. Rxd2 {[%clk 0:02:08]}  Rxd2 {[%clk 0:01:38]} 21. Rd1 {[%clk 0:02:09]}  Rxd1+ {[%clk 0:01:16]} 22. Nxd1 {[%clk 0:02:10]}  Nd5 {[%clk 0:01:06]} 23. Bb2 {[%clk 0:02:02]}  Kf8 {[%clk 0:01:02]} 24. Kf1 {[%clk 0:01:58]}  Ke8 {[%clk 0:00:55]} 25. Ke1 {[%clk 0:01:57]}  Ncb4 {[%clk 0:00:54]} 26. a3 {[%clk 0:01:27]}  Nd3+ {[%clk 0:00:54]} 27. Kd2 {[%clk 0:01:27]}  Nxb2 {[%clk 0:00:54]} 28. Nxb2 {[%clk 0:01:28]}  e4 {[%clk 0:00:46]} 29. fxe4 {[%clk 0:01:26]}  Nf6 {[%clk 0:00:33]} 30. Nd3 {[%clk 0:01:15]}  Nxe4+ {[%clk 0:00:32]} 31. Kc2 {[%clk 0:01:16]}  Bf8 {[%clk 0:00:24]} 32. a4 {[%clk 0:01:10]}  bxa4 {[%clk 0:00:18]} 33. bxa4 {[%clk 0:01:11]}  Kd7 {[%clk 0:00:17]} 34. Nd4 {[%clk 0:01:08]}  Bd6 {[%clk 0:00:14]} 35. h3 {[%clk 0:01:07]}  h5 {[%clk 0:00:08]} 36. f3 {[%clk 0:01:03]}  Nc5 {[%clk 0:00:04]} 37. Nxc5+ {[%clk 0:00:59]}  Bxc5 {[%clk 0:00:05]} 38. Kd3 {[%clk 0:00:58]} 1-0


[Site "https://www.chess.com"]

[Event "Titled Tuesday Blitz April 25 Late 2023"]
[White "Kraus, Tomas"]
[Black "Mickiewicz, Piotr"]
[WhiteFideId "331708"]
[BlackFideId "1114891"]
[WhiteElo "2389"]
[BlackElo "2246"]
[Result "0-1"]
[Round "07"]
[TimeControl "180+2"]
[Date "2023.04.25"]
[WhiteClock "0:00:01"]
[BlackClock "0:00:28"]

1. d4 {[%clk 0:02:59]}  Nf6 {[%clk 0:02:57]} 2. c4 {[%clk 0:02:58]}  e6 {[%clk 0:02:57]} 3. Nf3 {[%clk 0:02:56]}  Bb4+ {[%clk 0:02:57]} 4. Nc3 {[%clk 0:02:56]}  O-O {[%clk 0:02:52]} 5. Bg5 {[%clk 0:02:54]}  c5 {[%clk 0:02:51]} 6. Rc1 {[%clk 0:02:53]}  h6 {[%clk 0:02:43]} 7. Bh4 {[%clk 0:02:52]}  d5 {[%clk 0:02:21]} 8. e3 {[%clk 0:02:48]}  Nc6 {[%clk 0:02:16]} 9. cxd5 {[%clk 0:02:46]}  Qxd5 {[%clk 0:02:12]} 10. a3 {[%clk 0:02:41]}  Bxc3+ {[%clk 0:02:10]} 11. bxc3 {[%clk 0:02:42]}  cxd4 {[%clk 0:02:02]} 12. Bxf6 {[%clk 0:02:41]}  gxf6 {[%clk 0:01:58]} 13. Nxd4 {[%clk 0:02:41]}  Bd7 {[%clk 0:01:51]} 14. Bd3 {[%clk 0:02:10]}  Qxg2 {[%clk 0:01:38]} 15. Ke2 {[%clk 0:01:18]}  Qg4+ {[%clk 0:01:31]} 16. Nf3 {[%clk 0:01:19]}  Kh8 {[%clk 0:01:23]} 17. Rg1 {[%clk 0:01:18]}  Qh5 {[%clk 0:01:22]} 18. Be4 {[%clk 0:01:02]}  Rad8 {[%clk 0:01:19]} 19. Qd6 {[%clk 0:00:58]}  f5 {[%clk 0:01:14]} 20. Bb1 {[%clk 0:00:30]}  Bc8 {[%clk 0:01:07]} 21. Qf4 {[%clk 0:00:29]}  e5 {[%clk 0:00:59]} 22. Qg3 {[%clk 0:00:23]}  Rg8 {[%clk 0:00:56]} 23. Qh4 {[%clk 0:00:24]}  Qxh4 {[%clk 0:00:50]} 24. Nxh4 {[%clk 0:00:25]}  Ne7 {[%clk 0:00:47]} 25. Rxg8+ {[%clk 0:00:15]}  Kxg8 {[%clk 0:00:46]} 26. c4 {[%clk 0:00:11]}  Be6 {[%clk 0:00:40]} 27. c5 {[%clk 0:00:11]}  Kf8 {[%clk 0:00:36]} 28. f3 {[%clk 0:00:06]}  f6 {[%clk 0:00:35]} 29. Rd1 {[%clk 0:00:02]}  Rxd1 {[%clk 0:00:27]} 30. Kxd1 {[%clk 0:00:02]}  Ke8 {[%clk 0:00:27]} 31. Kd2 {[%clk 0:00:03]}  Kd7 {[%clk 0:00:27]} 32. Kc3 {[%clk 0:00:02]}  Kc6 {[%clk 0:00:28]} 33. Kb4 {[%clk 0:00:02]}  a5+ {[%clk 0:00:29]} 34. Kxa5 {[%clk 0:00:02]}  Kxc5 {[%clk 0:00:29]} 35. a4 {[%clk 0:00:02]}  Bc4 {[%clk 0:00:28]} 36. Bc2 {[%clk 0:00:01]}  b6# {[%clk 0:00:28]} 0-1


[Site "https://www.chess.com"]

[Event "Titled Tuesday Blitz April 25 Late 2023"]
[White "Ansh M Shah"]
[Black "Antonova, Nadezhda"]
[WhiteFideId "25033379"]
[BlackFideId "14700182"]
[WhiteElo "2084"]
[BlackElo "1765"]
[Result "0-1"]
[Round "07"]
[TimeControl "180+2"]
[Date "2023.04.25"]
[WhiteClock "0:00:03"]
[BlackClock "0:00:31"]

1. d4 {[%clk 0:03:00]}  Nf6 {[%clk 0:02:55]} 2. c4 {[%clk 0:03:01]}  g6 {[%clk 0:02:56]} 3. h4 {[%clk 0:03:01]}  h5 {[%clk 0:02:54]} 4. Nc3 {[%clk 0:03:01]}  Bg7 {[%clk 0:02:54]} 5. e4 {[%clk 0:03:02]}  d6 {[%clk 0:02:55]} 6. Be2 {[%clk 0:03:02]}  O-O {[%clk 0:02:55]} 7. Nf3 {[%clk 0:03:03]}  c5 {[%clk 0:02:56]} 8. d5 {[%clk 0:03:03]}  b5 {[%clk 0:02:55]} 9. cxb5 {[%clk 0:03:03]}  a6 {[%clk 0:02:55]} 10. a4 {[%clk 0:03:02]}  axb5 {[%clk 0:02:54]} 11. Bxb5 {[%clk 0:03:02]}  Ba6 {[%clk 0:02:54]} 12. Bd2 {[%clk 0:02:54]}  Qb6 {[%clk 0:02:48]} 13. O-O {[%clk 0:02:50]}  Nbd7 {[%clk 0:02:35]} 14. Qe2 {[%clk 0:02:44]}  Rfb8 {[%clk 0:02:32]} 15. Be3 {[%clk 0:02:15]}  Ng4 {[%clk 0:02:28]} 16. Bg5 {[%clk 0:02:14]}  Kf8 {[%clk 0:02:18]} 17. Qc2 {[%clk 0:01:53]}  Bxb5 {[%clk 0:02:15]} 18. axb5 {[%clk 0:01:46]}  Bxc3 {[%clk 0:01:59]} 19. Qxc3 {[%clk 0:01:43]}  f6 {[%clk 0:01:59]} 20. Rxa8 {[%clk 0:00:56]}  Rxa8 {[%clk 0:01:58]} 21. b4 {[%clk 0:00:22]}  Qxb5 {[%clk 0:01:53]} 22. bxc5 {[%clk 0:00:22]}  Nxc5 {[%clk 0:01:47]} 23. Be3 {[%clk 0:00:16]}  Nxe4 {[%clk 0:01:44]} 24. Qc2 {[%clk 0:00:15]}  Qa4 {[%clk 0:01:34]} 25. Qd3 {[%clk 0:00:13]}  Rc8 {[%clk 0:01:24]} 26. Nd4 {[%clk 0:00:13]}  Ne5 {[%clk 0:01:22]} 27. Qxe4 {[%clk 0:00:13]}  Kf7 {[%clk 0:01:21]} 28. Bf4 {[%clk 0:00:08]}  Rc4 {[%clk 0:01:20]} 29. Be3 {[%clk 0:00:06]}  Qd7 {[%clk 0:00:53]} 30. Rd1 {[%clk 0:00:05]}  Qa4 {[%clk 0:00:46]} 31. Rf1 {[%clk 0:00:04]}  Qd7 {[%clk 0:00:44]} 32. g3 {[%clk 0:00:05]}  Qh3 {[%clk 0:00:41]} 33. Qg2 {[%clk 0:00:05]}  Qg4 {[%clk 0:00:39]} 34. Ne6 {[%clk 0:00:04]}  Qf5 {[%clk 0:00:36]} 35. Re1 {[%clk 0:00:02]}  Nf3+ {[%clk 0:00:36]} 36. Kf1 {[%clk 0:00:03]}  Nxe1 {[%clk 0:00:36]} 37. Kxe1 {[%clk 0:00:03]}  Qb1+ {[%clk 0:00:35]} 38. Ke2 {[%clk 0:00:03]}  Rc2+ {[%clk 0:00:34]} 39. Kf3 {[%clk 0:00:04]}  Qd1+ {[%clk 0:00:33]} 40. Kf4 {[%clk 0:00:03]}  Rc4+ {[%clk 0:00:31]} 0-1


[Site "https://www.chess.com"]

[Event "Titled Tuesday Blitz April 25 Late 2023"]
[White "Degtiarev, Evgeny"]
[Black "Lutz, Igor Oscar"]
[WhiteFideId "4149610"]
[BlackFideId "2110806"]
[WhiteElo "2284"]
[BlackElo "1969"]
[Result "1-0"]
[Round "07"]
[TimeControl "180+2"]
[Date "2023.04.25"]
[WhiteClock "0:01:37"]
[BlackClock "0:00:37"]

1. d4 {[%clk 0:03:00]}  d5 {[%clk 0:02:59]} 2. c4 {[%clk 0:03:00]}  c6 {[%clk 0:03:00]} 3. Nc3 {[%clk 0:02:59]}  Nf6 {[%clk 0:03:00]} 4. e3 {[%clk 0:02:59]}  e6 {[%clk 0:03:01]} 5. Nf3 {[%clk 0:02:59]}  Bd6 {[%clk 0:03:01]} 6. Qc2 {[%clk 0:03:00]}  O-O {[%clk 0:03:00]} 7. Be2 {[%clk 0:03:00]}  dxc4 {[%clk 0:03:00]} 8. Bxc4 {[%clk 0:02:59]}  b5 {[%clk 0:03:01]} 9. Bd3 {[%clk 0:02:59]}  Bb7 {[%clk 0:03:00]} 10. Ne4 {[%clk 0:02:58]}  Nxe4 {[%clk 0:02:55]} 11. Bxe4 {[%clk 0:02:58]}  g6 {[%clk 0:02:56]} 12. h4 {[%clk 0:02:54]}  Qc7 {[%clk 0:02:43]} 13. h5 {[%clk 0:02:51]}  f5 {[%clk 0:02:35]} 14. hxg6 {[%clk 0:02:41]}  hxg6 {[%clk 0:02:26]} 15. Bd3 {[%clk 0:02:32]}  c5 {[%clk 0:02:09]} 16. Bxb5 {[%clk 0:02:20]}  cxd4 {[%clk 0:02:08]} 17. Qxc7 {[%clk 0:02:19]}  Bxc7 {[%clk 0:02:09]} 18. Nxd4 {[%clk 0:02:19]}  Bxg2 {[%clk 0:01:31]} 19. Rg1 {[%clk 0:02:16]}  Bd5 {[%clk 0:01:26]} 20. Rxg6+ {[%clk 0:02:12]}  Kf7 {[%clk 0:01:27]} 21. Rh6 {[%clk 0:02:10]}  Rg8 {[%clk 0:01:04]} 22. Rh7+ {[%clk 0:01:57]}  Rg7 {[%clk 0:01:04]} 23. Rxg7+ {[%clk 0:01:55]}  Kxg7 {[%clk 0:01:05]} 24. Bd2 {[%clk 0:01:53]}  a6 {[%clk 0:00:58]} 25. Ba4 {[%clk 0:01:44]}  Be5 {[%clk 0:00:41]} 26. Bc3 {[%clk 0:01:41]}  Bxd4 {[%clk 0:00:39]} 27. Bxd4+ {[%clk 0:01:40]}  Kf7 {[%clk 0:00:39]} 28. Rc1 {[%clk 0:01:38]}  Ra7 {[%clk 0:00:37]} 29. Bxa7 {[%clk 0:01:37]} 1-0


[Site "https://www.chess.com"]